Cogmind - Beta 11 *** ADVENTURER MODE // 2023.02.02 @ 11:10:35 Player: 3.14 Result: Destroyed by Y-54 Guardian with Gatling Laser Performance ------------- Evolutions (3) 1500 Regions Visited (6) 1200 Robots Destroyed (37) 185 Value Destroyed (1225) 1225 Prototype IDs (0) 0 Alien Tech Used (0) 0 Bonus (0) 0 TOTAL SCORE: 4110 Bonus ------- None Cogmind --------- Core Integrity 0/700 Matter 300/300 Energy 100/100 System Corruption 4% Temperature Cool (18) Movement Core (700) Ox13 Location -7/Factory Parts ------- > --- POWER (3) -------- (None) > --- PROPULSION (3) --- (None) > --- UTILITY (3) ------ High-capacity Storage Unit Improved Signal Interpreter > --- WEAPON (4) ------- (None) > --- INVENTORY (20) --- Aluminum Leg Improved Carbon-fiber Leg Improved Carbon-fiber Leg Kinecellerator Particle Gun Shock Bomb Launcher Maul Peak State ------------ > --- POWER ------------ Light Nuclear Core Light Nuclear Core > --- PROPULSION ------- Improved Carbon-fiber Leg Improved Carbon-fiber Leg Improved Carbon-fiber Leg > --- UTILITY ---------- High-capacity Storage Unit Improved Signal Interpreter Weapon Cycler > --- WEAPON ----------- Tesla Rifle Small Laser Particle Gun Particle Gun > --- INVENTORY -------- Improved Carbon-fiber Leg Improved Carbon-fiber Leg Kinecellerator Particle Gun Particle Gun Shock Bomb Launcher Maul [Rating: 39] Favorites ----------- Power Light Nuclear Core Engine Light Ion Engine Power Core Light Nuclear Core Propulsion Improved Carbon-fiber Leg Treads Light Treads Leg Improved Carbon-fiber Leg Wheel Wheel Utility High-capacity Storage Unit Device Weapon Cycler Storage High-capacity Storage Unit Processor Visual Processing Unit Weapon Particle Gun Energy Gun Particle Gun Ballistic Gun Assault Rifle Launcher Shock Bomb Launcher Build | -11 -10 -10 -10 -9 -8 -7 ------- Run | Scr Mat Min Exi Min Mat Fac Slots Evolved 6 | . . . . . 4 2 Power 2 | . . . . . 2 . Propulsion 1 | . . . . . 1 . Utility 1 | . . . . . . 1 Weapon 2 | . . . . . 1 1 Parts Attached 36 | 6 1 . 1 5 11 12 Power 6 | 1 . . . 2 . 3 Engine 3 | 1 . . . 2 . . Core 3 | . . . . . . 3 Reactor . | . . . . . . . Propulsion 11 | 2 . . . 2 4 3 Treads 2 | . . . . 2 . . Leg 7 | . . . . . 4 3 Wheel 2 | 2 . . . . . . Hover . | . . . . . . . Flight . | . . . . . . . Utility 7 | 1 1 . 1 . 2 2 Device 2 | . . . . . 1 1 Storage 3 | 1 . . 1 . 1 . Processor 2 | . 1 . . . . 1 Hackware . | . . . . . . . Protection . | . . . . . . . Artifact . | . . . . . . . Weapon 12 | 2 . . . 1 5 4 Energy Gun 7 | 1 . . . . 3 3 Energy Cannon . | . . . . . . . Ballistic Gun 3 | 1 . . . 1 1 . Ballistic Cannon . | . . . . . . . Launcher 2 | . . . . . 1 1 Special Weapon . | . . . . . . . Impact Weapon . | . . . . . . . Slashing Weapon . | . . . . . . . Piercing Weapon . | . . . . . . . Special Melee Weapon . | . . . . . . . Unidentified Prototypes . | . . . . . . . Parts Lost 14 | . . . . 1 2 11 Power 4 | . . . . 1 . 3 Propulsion 4 | . . . . . 1 3 Utility 1 | . . . . . . 1 Weapon 5 | . . . . . 1 4 Highest Loss Streak 8 | . . . . 1 1 8 To Critical Strikes 2 | . . . . . 1 1 Average Slot Usage (%) 90 | . 94 100 100 98 76 86 Engine 8 | . 14 14 14 14 9 1 Core 5 | . . . . . . 16 Treads 5 | . . . . 25 7 . Leg 10 | . . . . . 16 19 Wheel 8 | . 28 28 28 2 . . Device 3 | . . . . . 4 7 Storage 10 | . 14 14 14 14 9 7 Processor 8 | . 8 14 14 14 4 5 Energy Gun 17 | . 14 14 14 14 14 22 Ballistic Gun 8 | . 14 14 14 12 10 . Launcher 1 | . . . . . 1 3 Naked Turns . | . . . . . . . Heaviest Build 69 | 14 14 14 19 19 53 69 Greatest Support 54 | 20 20 20 20 40 40 54 Greatest Overweight (x) 2 | . . . . . 2 1 Average Overweight (x) . | . . . . . . 1 Largest Inventory Capacity 20 | 8 8 8 10 10 20 20 Average Capacity 14 | 7 8 8 8 10 19 20 Most Carried 8 | 5 4 3 4 6 6 8 Average Carried 4 | 2 3 3 3 4 3 5 Final Capacity 20 | 8 8 8 10 10 20 20 Final Carried 7 | 3 3 3 3 5 3 7 Class Distribution -------------------- 57% | Mutant 13% | Gunner 12% | Scavenger-Tank 5% | Scavenger-Mutant 4% | Scavenger-Skirmisher 3% | Skirmisher Dominant Class ---------------- Mutant | -10/Materials Mutant | -10/Mines Mutant | -10/Exiles Mutant | -9/Mines Scavenger-Tank | -8/Materials Gunner | -7/Factory Resources | -11 -10 -10 -10 -9 -8 -7 ----------- Run | Scr Mat Min Exi Min Mat Fac Matter Collected 691 | 171 63 . . 143 171 143 Remotely . | . . . . . . . Salvage Created 1363 | . 147 . . 148 599 469 Parts 72 | . 13 . . 15 19 25 Haulers Intercepted . | . . . . . . . Recyclers Shooed . | . . . . . . . Parts Field Recycled . | . . . . . . . Retrieved Matter . | . . . . . . . Parts Self-Destructed . | . . . . . . . Prevented . | . . . . . . . Kills | -11 -10 -10 -10 -9 -8 -7 ------- Run | Scr Mat Min Exi Min Mat Fac Combat Hostiles Destroyed 33 | . 5 . . 7 13 8 Guns 30 | . 5 . . 7 13 5 AOE 3 | . . . . . . 3 Classes Destroyed 10 | . 3 . . 2 2 3 Worker 1 | . . . . . . 1 Recycler 1 | . . . . . . 1 Watcher 2 | . 1 . . . . 1 Swarmer 12 | . 3 . . 4 2 3 Grunt 16 | . 2 . . 1 9 4 Duelist 1 | . . . . 1 . . Sentry 1 | . . . . . 1 . Demolisher 1 | . . . . 1 . . Hunter 1 | . . . . . 1 . Programmer 1 | . . . . . . 1 Best Kill Streak 5 | . 5 . . 4 3 4 Combat Bots Only 5 | . 5 . . 4 3 4 Max Kills in Single Turn 3 | . 2 . . 1 1 3 Gunslinging . | . . . . . . . Exploded 2 | . . . . . . 2 Melee . | . . . . . . . Uniques/NPCs Destroyed . | . . . . . . . Combat | -11 -10 -10 -10 -9 -8 -7 -------- Run | Scr Mat Min Exi Min Mat Fac Damage Taken 2727 | . 96 . . 499 553 1579 Core 1002 | . 50 . . 120 130 702 Absorbed by Shields . | . . . . . . . Core Remaining (%) 69 | 100 . . . 32 76 . Volleys Fired 80 | . 10 . . 16 31 23 Largest 4 | . 2 . . 2 3 4 Hottest 206 | . 70 . . 70 150 206 Shots Fired 185 | . 20 . . 28 84 53 Gun 175 | . 20 . . 28 82 45 Cannon . | . . . . . . . Launcher 10 | . . . . . 2 8 Special . | . . . . . . . Kinetic 56 | . 10 . . 12 34 . Thermal 105 | . 10 . . 16 48 31 Explosive . | . . . . . . . Electromagnetic 24 | . . . . . 2 22 Robot Hit Streak 19 | . 9 . . 12 19 8 Robot Miss Streak 2 | . 2 . . 1 1 2 Penetration Max . | . . . . . . . Secondary Targets 3 | . . . . . 2 1 Max Gunslinging Chain 1 | . . . . . 1 1 Shots Hit Robots 136 | . 15 . . 22 64 35 Core Hits 74 | . 9 . . 13 33 19 Critical Kills . | . . . . . . . Critical Parts Destroyed . | . . . . . . . Critical Strikes 7 | . 1 . . 4 . 2 Burn 5 | . 1 . . 4 . . Corrupt 2 | . . . . . . 2 Melee Attacks . | . . . . . . . Impact . | . . . . . . . Slashing . | . . . . . . . Piercing . | . . . . . . . Sneak Attacks . | . . . . . . . Combat Hostiles . | . . . . . . . Follow-up Attacks . | . . . . . . . Damage Inflicted 2146 | . 212 . . 289 807 838 Guns 1761 | . 212 . . 289 755 505 Cannons . | . . . . . . . Explosions 385 | . . . . . 52 333 Melee . | . . . . . . . Ramming . | . . . . . . . Kinetic 427 | . 99 . . 99 229 . Thermal 1120 | . 113 . . 190 526 291 Explosive 103 | . . . . . . 103 Electromagnetic 496 | . . . . . 52 444 Impact . | . . . . . . . Slashing . | . . . . . . . Piercing . | . . . . . . . Highest Corruption 4 | . . . . . . 4 Average Corruption 1 | . . . . . . 1 Corruption Purged . | . . . . . . . Corruption Blocked . | . . . . . . . Effects 8 | . . . . . . 8 Message Errors 2 | . . . . . . 2 Matter Fused 1 | . . . . . . 1 Heat Flow Errors 1 | . . . . . . 1 Energy Discharges 1 | . . . . . . 1 Parts Rejected 1 | . . . . . . 1 Data Loss (minor) 1 | . . . . . . 1 Misfires 1 | . . . . . . 1 Overload Shots . | . . . . . . . Overflow Damage 22 | . . . . . . 22 Projectiles . | . . . . . . . Explosions 22 | . . . . . . 22 Melee . | . . . . . . . Knockbacks . | . . . . . . . Impact . | . . . . . . . Kinetic . | . . . . . . . Secondary . | . . . . . . . Self-Inflicted Damage 15 | . . . . . . 15 Shots 1 | . . . . . . 1 Rammed . | . . . . . . . Targets Rammed . | . . . . . . . Kicked . | . . . . . . . Crushed . | . . . . . . . Highest Temperature 644 | . 93 . . 67 450 644 Average Temperature 140 | . 37 . . 21 125 219 Received Heat Transfer 714 | . 39 . . 12 288 375 Effects 26 | . . . . . 5 21 Shutdowns 12 | . . . . . 2 10 Energy Bleed 4 | . . . . . 3 1 Interference 3 | . . . . . . 3 Short Circuit 2 | . . . . . . 2 Damage (major) 4 | . . . . . . 4 Damage (core) 1 | . . . . . . 1 Siege Activations . | . . . . . . . Robots Corrupted . | . . . . . . . Combat Hostiles . | . . . . . . . Parts Fried 1 | . . . . . . 1 Impact Corruptions . | . . . . . . . Robots Melted . | . . . . . . . Combat Hostiles . | . . . . . . . Parts Melted 5 | . . . . . 5 . Heat Transferred 3139 | . 407 . . 851 1285 596 Parts Sabotaged . | . . . . . . . Parts Stolen . | . . . . . . . Parts Stripped . | . . . . . . . Power Chain Reactions 2 | . . . . . 1 1 Missiles Intercepted . | . . . . . . . Alert | -11 -10 -10 -10 -9 -8 -7 ------- Run | Scr Mat Min Exi Min Mat Fac Peak Influence 330 | . 166 54 . 175 330 269 Initial 97 | . . 54 . . 57 97 Average 138 | . 90 54 . 128 214 128 Maximum Alert Level 1 | . . . . . 1 1 Low Security (%) 77 | 100 100 100 . 100 45 78 Level 1 22 | . . . . . 54 21 Level 2 . | . . . . . . . Level 3 . | . . . . . . . Level 4 . | . . . . . . . Level 5 . | . . . . . . . High Security . | . . . . . . . Max Security . | . . . . . . . Squads Dispatched 7 | . 1 . . . 3 3 Investigation 1 | . 1 . . . . . Extermination 1 | . . . . . . 1 Reinforcement 4 | . . . . . 3 1 Assault . | . . . . . . . Garrison 1 | . . . . . . 1 Intercept . | . . . . . . . Searches Triggered . | . . . . . . . Construction Impeded . | . . . . . . . Haulers Reinforced . | . . . . . . . Active Scanning Responses . | . . . . . . . Cargo Convoy Interrupts . | . . . . . . . Stealth | -11 -10 -10 -10 -9 -8 -7 --------- Run | Scr Mat Min Exi Min Mat Fac Distress Signals 3 | . 1 . . . 2 . Communications Jammed . | . . . . . . . Distress Signals . | . . . . . . . Times Spotted 50 | . 6 . . 10 18 16 Peak Tracking Total 4 | . 3 . . 4 4 3 Tactical Retreats 4 | . 1 . . . 2 1 Traps | -11 -10 -10 -10 -9 -8 -7 ------- Run | Scr Mat Min Exi Min Mat Fac Traps Triggered 1 | . . . . . . 1 Indirectly . | . . . . . . . Trap Hack Attempts . | . . . . . . . Triggered . | . . . . . . . Disarmed . | . . . . . . . Reprogrammed . | . . . . . . . Reused . | . . . . . . . Traps Extracted . | . . . . . . . Installed . | . . . . . . . Triggered . | . . . . . . . Machines | -11 -10 -10 -10 -9 -8 -7 ---------- Run | Scr Mat Min Exi Min Mat Fac Machines Disabled 1 | . . . . . . 1 Max in Single Turn 1 | . . . . . . 1 Machines Sabotaged . | . . . . . . . Garrisons Compromised . | . . . . . . . Overloaded Fab Kills . | . . . . . . . Hacking | -11 -10 -10 -10 -9 -8 -7 --------- Run | Scr Mat Min Exi Min Mat Fac Machines Accessed 7 | . 2 . 4 . . 1 Terminals 3 | . 2 . . . . 1 Fabricators . | . . . . . . . Repair Stations . | . . . . . . . Recycling Units . | . . . . . . . Scanalyzers . | . . . . . . . Garrison Access . | . . . . . . . Total Hacks 58 | . 6 . 49 . . 3 Successful 54 | . 3 . 49 . . 2 Failed 4 | . 3 . . . . 1 Catastrophic . | . . . . . . . Database Lockouts . | . . . . . . . Manual . | . . . . . . . Terminals 9 | . 6 . . . . 3 Fabricators . | . . . . . . . Repair Stations . | . . . . . . . Recycling Units . | . . . . . . . Scanalyzers . | . . . . . . . Garrison Access . | . . . . . . . Terminal Hacks 54 | . 3 . 49 . . 2 Record 49 | . . . 49 . . . Robot Analysis 1 | . 1 . . . . . Recall Reinforcements 1 | . . . . . . 1 Recall Assault 1 | . . . . . . 1 Registered Components 1 | . 1 . . . . . Zone Layout 1 | . 1 . . . . . Fabricator Hacks . | . . . . . . . Repair Station Hacks . | . . . . . . . Recycling Unit Hacks . | . . . . . . . Scanalyzer . | . . . . . . . Garrison Access Hacks . | . . . . . . . Unauthorized Hacks . | . . . . . . . Terminals . | . . . . . . . Fabricators . | . . . . . . . Repair Stations . | . . . . . . . Recycling Units . | . . . . . . . Scanalyzers . | . . . . . . . Garrison Access . | . . . . . . . Data Cores Recovered . | . . . . . . . Used . | . . . . . . . Hacking Detections 2 | . 1 . . . . 1 Full Trace Events . | . . . . . . . Feedback Events . | . . . . . . . Feedback Blocked . | . . . . . . . Robot Schematics Acquired . | . . . . . . . Robots Built . | . . . . . . . Authchips . | . . . . . . . Time . | . . . . . . . Total Robot Build Rating . | . . . . . . . Part Schematics Acquired . | . . . . . . . Parts Built . | . . . . . . . Authchips . | . . . . . . . Time . | . . . . . . . Total Part Build Rating . | . . . . . . . Parts Repaired . | . . . . . . . Time . | . . . . . . . Parts Recycled . | . . . . . . . Recycled Matter . | . . . . . . . Retrieved Matter . | . . . . . . . Retrieved Components . | . . . . . . . Parts Scanalyzed . | . . . . . . . Part Schematics Acquired . | . . . . . . . Parts Damaged . | . . . . . . . Bothacking | -11 -10 -10 -10 -9 -8 -7 ------------ Run | Scr Mat Min Exi Min Mat Fac Used RIF Installer . | . . . . . . . Robots Hacked . | . . . . . . . Non-combat . | . . . . . . . Combat . | . . . . . . . Robot Hacks Applied . | . . . . . . . Relay Couplers Released 3 | . . . . . . 3 Programmers 3 | . . . . . . 3 Fabnet Peak Effective % . | . . . . . . . Robots Rewired . | . . . . . . . Allies Hacked . | . . . . . . . Hacks Repelled . | . . . . . . . Allies | -11 -10 -10 -10 -9 -8 -7 -------- Run | Scr Mat Min Exi Min Mat Fac Total Allies . | . . . . . . . Largest Group . | . . . . . . . Highest-Rated Group . | . . . . . . . Highest-Rated Ally . | . . . . . . . Total Orders . | . . . . . . . Ally Attacks . | . . . . . . . Total Damage . | . . . . . . . Kills . | . . . . . . . Allies Corrupted . | . . . . . . . Allies Melted . | . . . . . . . Intel | -11 -10 -10 -10 -9 -8 -7 ------- Run | Scr Mat Min Exi Min Mat Fac Robot Analysis Total 1 | . 1 . . . . . Derelict Logs Recovered 3 | . . 2 . 1 . . Drone Launches . | . . . . . . . Drone Recoveries . | . . . . . . . Exploration | -11 -10 -10 -10 -9 -8 -7 ------------- Run | Scr Mat Min Exi Min Mat Fac Turns Passed 2598 | 60 138 99 488 399 483 931 Spaces Moved 1729 | 61 133 110 607 222 181 415 Core 13 | 13 . . . . . . Treads 270 | . . . . 206 64 . Legs 532 | . . . . . 117 415 Wheels 914 | 48 133 110 607 16 . . Hover . | . . . . . . . Flight . | . . . . . . . Fastest Speed 50 | 50 80 80 80 80 160 190 Average Speed 128 | 73 80 80 80 154 204 190 Slowest Speed 320 | 80 80 80 80 160 320 190 Overloaded Moves . | . . . . . . . Propulsion Burnouts . | . . . . . . . Robots Hopped . | . . . . . . . Cave-ins Triggered . | . . . . . . . Exploration Rate (%) 34 | 5 27 34 93 48 20 13 Regions Visited 6 Branch Regions 3 Pre-discovered Areas 1 | . . . 1 . . . Known Exits Taken . | . . . . . . . Unknown Exits Taken 6 | 1 1 1 1 1 1 . Scrap Searched 1 | . . . . 1 . . Spaces Dug . | . . . . . . . Terrain Destroyed 24 | . . . . . 3 21 Melee . | . . . . . . . Projectile . | . . . . . . . AOE 24 | . . . . . 3 21 Terrain Rammed . | . . . . . . . Walls Destroyed . | . . . . . . . Machines Disabled . | . . . . . . . Actions | -11 -10 -10 -10 -9 -8 -7 --------- Run | Scr Mat Min Exi Min Mat Fac Total 1955 | 75 144 120 609 252 236 519 Wait 59 | . . 11 . . . 48 Move 1723 | 60 132 109 606 221 180 415 Hop . | . . . . . . . Pick Up 40 | 9 1 . 1 7 7 15 Fast Attach . | . . . . . . . Attach 35 | 6 1 . 1 5 10 12 Detach 2 | . . . . . 1 1 Swap 1 | . . . . . 1 . Drop 15 | . . . 1 3 6 5 Fire 80 | . 10 . . 16 31 23 Melee . | . . . . . . . Ram . | . . . . . . . Kick . | . . . . . . . Crush . | . . . . . . . Escape Stasis . | . . . . . . . Rewire . | . . . . . . . Trap . | . . . . . . . Miscellaneous . | . . . . . . . Route ------- -11/Scrapyard -10/Materials -10/Mines -10/Exiles (discovered 2 exits: [*Min x2]) -9/Mines -8/Materials -7/Factory History --------- Turn | Location | Event 11 | -11/Scrapyard | Discovered new exit (range 16) 61 | -11/Scrapyard | Entered Materials 161 | -10/Materials | Met 8R-AWN 193 | -10/Materials | Discovered new exit (range 8) 199 | -10/Materials | Entered Mines 200 | -10/Mines | Followed 8R-AWN into the Mines 230 | -10/Mines | Learned Materials interactive machine intel 282 | -10/Mines | Learned Materials trap positions 288 | -10/Mines | Discovered new exit (range 5) 298 | -10/Mines | Entered Exiles 302 | -10/Exiles | Build established: Mutant 310 | -10/Exiles | Discovered new exit (range 17) 320 | -10/Exiles | Welcomed by 8R-AWN 337 | -10/Exiles | Met EX-HEX 389 | -10/Exiles | Met EX-DEC 430 | -10/Exiles | Met EX-BIN 527 | -10/Exiles | Learned location of Zion (-7) 572 | -10/Exiles | Discovered new exit (range 14) 636 | -10/Exiles | Visited The Gauntlet 786 | -10/Exiles | Entered Mines 816 | -9/Mines | Core integrity fell below 50% 951 | -9/Mines | Learned Materials trap positions 1076 | -9/Mines | Discovered new exit (range 16) 1139 | -9/Mines | Assembled infested the area 1185 | -9/Mines | Entered Materials 1185 | -8/Materials | Evolved 4 slots: Power x2, Propulsion x1, Weapon x1 1186 | -8/Materials | Loaded intel: 16 trap records 1187 | -8/Materials | Loaded intel: 19 interactive machine locations 1658 | -8/Materials | Discovered new exit (range 5) 1668 | -8/Materials | Entered Factory 1668 | -7/Factory | Evolved 2 slots: Utility x1, Weapon x1 2127 | -7/Factory | Build established: Gunner 2135 | -7/Factory | Garrison activated, responded to threat 2574 | -7/Factory | Core integrity fell below 50% 2585 | -7/Factory | Build established: Mutant 2590 | -7/Factory | Core integrity fell below 20% 2599 | -7/Factory | Destroyed by Y-54 Guardian with Gatling Laser Last Messages --------------- 02450_ K-01 Serf destroyed. 02451_ K-01 Serf collects debris. 02469_ 4F Q|F<|/SDP6UW#QGOODB%GM/O 02475_ Connecting with Fabricator... 02479_ ALERT: Cargo convoy en route, clear transfer corridor. 02488_ System corrupted: FCS attempts to trigger Sml. Laser. 02488_ System corrupted: Sml. Laser misfires. 02502_ ALERT: Rogue bot located, Programmers report to Factory Zone 3D. 02538_ Lgt. Nuclear Core destroyed. 02539_ System corrupted: Lgt. Nuclear Core rejected. 02544_ Particle Gun destroyed. 02551_ P-60 Hacker resets Y-54 Guardian, system corruption cleaned. 02554_ Sml. Laser destroyed. 02554_ Tesla Rifle destroyed. 02557_ Imp. Carbon-fiber Leg destroyed. 02558_ K-01 Serf cleans the Terminal. 02560_ Imp. Carbon-fiber Leg destroyed. 02571_ Particle Gun destroyed. 02589_ System corrupted: Component data lost. 02589_ Broken Weapon Cycler destroyed. Map ----- +----------------------------------------------------+ | ????????????????##+## +??????????????? | | ????????????? ###??????????????? | | ????????????? #????????????????? | | ?????????????? #????????????????? | | ??????????????####+## """""" #????????????????? | | ????????????????????# """""" #????????????????? | | ????????????????????# """""" #????????????????? | | ????????????????????# """""" #????????????????? | | ????????????????????# ?""""" #????????????????? | | ????????????????????# ?"""""" #????????????????? | | ????????????????????#? ?"""""" #????????????????? | | ???????????????? """""" #????????????????? | | ??????????????? """""" #????????????????? | | ??????????????? #????????????????? | | ??????????????? #????????????????? | | ??????????????? ########## #????????????????? | | ??????????????????????????????# #????????????????? | | ??????????????????????????????# #????????????????? | | ??????????????????????????????# #????????????????? | | ??????????????????????????????# #????????????????? | | ?????????????????????????####?# #????????????????? | | ????????????????????????##T ### #????????????????? | | ????????????????????????#p #????????????????? | | ????????????????????????# #######????????????????? | | ??????????????????????### ###????????????????????? | | ??????????????????????# @ #????????????????????? | | ?????????????????# #????????????????????? | | ?????????????????# Y #????????????????????? | | ?????????????????# #????????????????????? | | ?????????????????###### #????????????????????? | | ??????????????????????## ##????????????????????? | | ???????????????????????# #?????????????????????? | | ???????????????????????# #?????????????????????? | | ???????????????????????# #?????????????????????? | | ???????????????????????# #?????????????????????? | | ??????????????????????? ?????????????????????? | | ??????????????????????? T ?????????????????????? | | ??????????????????????? "" ?????????????????????? | | ??????????????????????? ? ?????????????????????? | | ???????????????????????!?? ?????????????????????? | | ???????????????????????#??##?????????????????????? | | ?????????????????????????????????????????????????? | | ?????????????????????????????????????????????????? | | ?????????????????????????????????????????????????? | | ?????????????????????????????????????????????????? | | ?????????????????????????????????????????????????? | | ?????????????????????????????????????????????????? | | ?????????????????????????????????????????????????? | | ?????????????????????????????????????????????????? | | ?????????????????????????????????????????????????? | +----------------------------------------------------+ Best States ------------- Heat Dissipation 34 Energy Generation 32 Energy Capacity 280 Matter Stores 300 Matter Capacity 300 Sight Range 18 Terrain Scan Density 10 Resistance: KI 20 Resistance: TH 20 Resistance: EX 20 Resistance: EM 20 Resistance: I 20 Resistance: S 20 Resistance: P 20 Weapon Cycling 15 Evasion (%) 50 Recoil Reduction 2 Offensive Hacking 10 Item Schematics ----------------- None Robot Schematics ------------------ None Fabricated ------------ Nothing Alien Tech Used ----------------- None Achievements -------------- I Survived The Infestation Challenges ------------ None Game ------ Seed ThermalSpreadGuard Manual? 0 Play Time 00:24:41 Cumulative 6.9 hours Start 2023.02.02 @ 10:46:23 End 2023.02.02 @ 11:10:35 Sessions 1 Manual Loads 0 Difficulty Adventurer Special Mode None Game No. 14 Rogue 9 Adventurer 5 Explorer 0 Win Type - Total 0 Types 0/0/0/0/0/0/0/0/0 Lore% 15 Gallery% 14 Achievement% 15 Wizard Run 0 Options --------- ASCII 0 Keyboard 0 Movement Mouse Keybinds 0 Fullscreen 1 Font 12/Terminus Map View 83x54 Tactical HUD 1 Map Filters NONE Filters NONE Steam 0 RUN: a7dfa6c2-503a-4443-9825-c7e68c12bbf4